fUSD/lending_fUSD_20240318
["ID","MTS","AMOUNT","RATE_DAILY","PERIOD"]
[319475804,1710799904439,-1374.98,0.00023013,2]
[319475805,1710799904451,-500.0,0.00023013,2]
[319475806,1710799904463,-2453.88,0.00023013,2]
[319475807,1710799904474,-584.72,0.00023013,2]
[319475808,1710799904485,-500.0,0.00023013,2]
[319475809,1710799904497,-1349.99,0.00023013,2]
[319475810,1710799904509,-1580.15,0.00023013,2]
[319475811,1710799904521,-500.0,0.00023013,2]
[319475812,1710799904534,-1466.21,0.00023013,2]
[319475813,1710799904546,-500.0,0.00023013,2]
[319475814,1710799904557,-500.0,0.00023013,2]
[319475815,1710799904569,-1118.72,0.00023013,2]
[319475816,1710799904585,-500.0,0.00023013,2]
[319475817,1710799904596,-606.91,0.00023013,2]
[319475818,1710799904607,-1958.41,0.00023013,2]
[319475819,1710799904619,-500.0,0.00023013,2]
[319475820,1710799904630,-605.4,0.00023013,2]
[319475821,1710799904643,-500.0,0.00023013,2]
[319475822,1710799904656,-500.0,0.00023013,2]
[319475823,1710799904667,-500.0,0.00023013,2]
[319475824,1710799904678,-500.0,0.00023013,2]
[319475825,1710799904689,-942.42,0.00023013,2]
[319475826,1710799904700,-500.0,0.00023013,2]
[319475827,1710799904712,-569.15,0.00023013,2]
[319475828,1710799904723,-941.12,0.00023013,2]
[319475829,1710799904734,-1400.41,0.00023013,2]
[319475830,1710799904746,-156.46308012,0.00023013,2]
[319475831,1710799904757,-500.0,0.00023013,2]
[319475832,1710799904769,-500.0,0.00023013,2]
[319475833,1710799904780,-500.0,0.00023013,2]
[319475834,1710799904791,-500.0,0.00023013,2]
[319475835,1710799904802,-1781.44,0.00023013,2]
[319475836,1710799904813,-151.0,0.00023013,7]
[319475837,1710799904824,-151.0,0.00023013,7]
[319475838,1710799904835,-500.0,0.00023013,2]
[319475839,1710799904846,-500.0,0.00023013,2]
[319475840,1710799904857,-1912.95,0.00023013,2]
[319475841,1710799904869,-713.68,0.00023013,2]
[319475842,1710799904879,-1203.57,0.00023013,2]
[319475843,1710799904892,-905.72,0.00023013,2]
[319475844,1710799904903,-500.0,0.00023013,2]
[319475845,1710799904913,-500.0,0.00023013,2]
[319475846,1710799904925,-4393.41,0.00023013,2]
[319475847,1710799904936,-2303.75,0.00023013,2]
[319475848,1710799904947,-500.0,0.00023013,2]
[319475849,1710799904958,-1401.22,0.00023013,2]
[319475850,1710799904970,-1144.14,0.00023013,2]
[319475851,1710799904981,-1229.49,0.00023013,2]
[319475852,1710799904992,-511.29,0.00023013,2]
[319475853,1710799905004,-500.0,0.00023013,2]
[319475854,1710799905015,-1432.28,0.00023013,2]
[319475855,1710799905026,-500.0,0.00023013,2]
[319475856,1710799905037,-500.0,0.00023013,2]
[319475857,1710799905048,-516.82,0.00023013,2]
[319475858,1710799905058,-500.0,0.00023013,2]
[319475859,1710799905069,-500.0,0.00023013,2]
[319475860,1710799905086,-1305.33,0.00023013,2]
[319475861,1710799905098,-581.47,0.00023013,2]
[319475862,1710799905109,-678.53,0.00023013,2]
[319475863,1710799905120,-737.52,0.00023013,2]
[319475864,1710799905131,-1022.21,0.00023013,2]
[319475865,1710799905144,-500.0,0.00023013,2]
[319475866,1710799905155,-1654.91,0.00023013,2]
[319475867,1710799905166,-500.0,0.00023013,2]
[319475868,1710799905178,-302.990116,0.00023013,7]
[319475869,1710799905189,-302.990116,0.00023013,7]
[319475870,1710799905201,-500.0,0.00023013,2]
[319475871,1710799905212,-745.31,0.00023013,2]
[319475872,1710799905224,-302.990116,0.00023013,7]
[319475873,1710799905235,-302.990116,0.00023013,7]
[319475874,1710799905247,-500.0,0.00023013,2]
[319475875,1710799905258,-7202.93,0.00023013,2]
[319475876,1710799905269,-20689.66,0.00023013,2]
[319475877,1710799905280,-2992.02,0.00023013,2]
[319475878,1710799905291,-500.0,0.00023013,2]
[319475879,1710799905302,-638.22,0.00023013,2]
[319475880,1710799905314,-1157.8,0.00023013,2]
[319475881,1710799905325,-1110.24,0.00023013,2]
[319475882,1710799905335,-500.0,0.00023013,2]
[319475883,1710799905347,-1088.66,0.00023013,2]
[319475884,1710799905359,-1090.38,0.00023013,2]
[319475885,1710799905371,-500.0,0.00023013,2]
[319475886,1710799905382,-1367.92,0.00023013,2]
[319475887,1710799905393,-500.0,0.00023013,2]
[319475888,1710799905404,-8212.3,0.00023013,2]
[319475889,1710799905416,-500.0,0.00023013,2]
[319475890,1710799905426,-6843.13,0.00023013,2]
[319475891,1710799905438,-1716.46,0.00023013,2]
[319475892,1710799905449,-640.557938,0.00023013,7]
[319475893,1710799905460,-640.557938,0.00023013,7]
[319475894,1710799905472,-1412.21,0.00023013,2]
[319475895,1710799905483,-500.0,0.00023013,2]
[319475896,1710799905495,-500.0,0.00023013,2]
[319475897,1710799905507,-622.92,0.00023013,2]
[319475898,1710799905518,-605.07,0.00023013,2]
[319475899,1710799905530,-640.557938,0.00023013,7]
[319475900,1710799905541,-640.557938,0.00023013,7]
[319475901,1710799905552,-553.81414791,0.00023013,2]
[319475902,1710799905564,-738.47,0.00023013,2]
[319475903,1710799905576,-1814.94,0.00023013,2]
[319475904,1710799905589,-2375.9,0.00023013,2]
[319475905,1710799905600,-642.05,0.00023013,2]
[319475906,1710799905612,-720.26,0.00023013,2]
[319475907,1710799905624,-500.0,0.00023013,2]
[319475908,1710799905635,-216.18,0.00023013,2]
[319475909,1710799905646,-500.0,0.00023013,2]
[319475910,1710799905660,-7701.15,0.00023013,2]
[319475911,1710799905672,-2621.03,0.00023013,2]
[319475912,1710799905683,-70618.05,0.00023013,2]
[319475913,1710799905695,-1283.55,0.00023013,2]
[319475914,1710799905706,-867.51,0.00023013,2]
[319475915,1710799905717,-500.0,0.00023013,2]
[319475916,1710799905728,-500.0,0.00023013,2]
[319475917,1710799905739,-933.88,0.00023013,2]
[319475918,1710799905751,-500.0,0.00023013,2]
[319475919,1710799905762,-651.4,0.00023013,2]
[319475920,1710799905774,-1968.24,0.00023013,2]
[319475921,1710799905785,-1507.28,0.00023013,2]
[319475922,1710799905796,-611.72104528,0.00023013,2]
[319475923,1710799905808,-500.0,0.00023013,2]
[319475924,1710799905818,-15625.12,0.00023013,2]
[319475925,1710799905830,-500.0,0.00023013,2]
[319475926,1710799905841,-2930.24,0.00023013,2]
[319475927,1710799905852,-500.0,0.00023013,2]
[319475928,1710799905863,-386.07,0.00023013,2]
[319475929,1710799905875,-648.293849,0.00023013,2]
[319475930,1710799905886,-500.0,0.00023013,2]
[319475931,1710799905898,-908.19,0.00023013,2]
[319475932,1710799905910,-836.99,0.00023013,2]
[319475933,1710799905921,-1649.1,0.00023013,2]
[319475934,1710799905933,-500.0,0.00023013,2]
[319475935,1710799905944,-3638.93,0.00023013,2]
[319475936,1710799905955,-1000.59,0.00023013,2]
[319475937,1710799905966,-500.0,0.00023013,2]
[319475938,1710799905977,-500.0,0.00023013,2]
[319475939,1710799905988,-2240.25,0.00023013,2]
[319475940,1710799905999,-500.0,0.00023013,2]
[319475941,1710799906010,-500.0,0.00023013,2]
[319475942,1710799906021,-500.0,0.00023013,2]
[319475943,1710799906032,-500.0,0.00023013,2]
[319475944,1710799906043,-876.56,0.00023013,2]
[319475945,1710799906054,-500.0,0.00023013,2]
[319475946,1710799906066,-1827.91,0.00023013,2]
[319475947,1710799906077,-500.0,0.00023013,2]
[319475948,1710799906088,-2226.67,0.00023013,2]
[319475949,1710799906100,-4659.24,0.00023013,2]
[319475950,1710799906111,-500.0,0.00023013,2]
[319475951,1710799906123,-500.0,0.00023013,2]
[319475952,1710799906135,-500.0,0.00023013,2]
[319475953,1710799906146,-3729.26,0.00023013,2]
[319475954,1710799906157,-3606.56,0.00023013,2]
[319475955,1710799906169,-500.0,0.00023013,2]
[319475956,1710799906180,-500.0,0.00023013,2]
[319475957,1710799906192,-500.0,0.00023013,2]
[319475958,1710799906673,-1207.02,0.00023013,2]
[319475959,1710799906689,-963.32,0.00023013,2]
[319475960,1710799906699,-2980.27,0.00023013,2]
[319475961,1710799906708,-28470.72,0.00023013,2]
[319475962,1710799906718,-500.0,0.00023013,2]
[319475963,1710799906728,-1000.56,0.00023013,2]
[319475964,1710799906737,-500.0,0.00023013,2]
[319475965,1710799906747,-3061.78,0.00023013,2]
[319475966,1710799906758,-500.0,0.00023013,2]
[319475967,1710799906767,-1014.54,0.00023013,2]
[319475968,1710799906776,-500.0,0.00023013,2]
[319475969,1710799906785,-1007.55,0.00023013,2]
[319475970,1710799906795,-500.0,0.00023013,2]
[319475971,1710799906805,-12991.16,0.00023013,2]
[319475972,1710799906814,-825.64,0.00023013,2]
[319475973,1710799906823,-1967.21,0.00023013,2]
[319475974,1710799906832,-500.0,0.00023013,2]
[319475975,1710799906842,-500.0,0.00023013,2]
[319475976,1710799906851,-989.42,0.00023013,2]
[319475977,1710799906860,-3350.06,0.00023013,2]
[319475978,1710799906869,-500.0,0.00023013,2]
[319475979,1710799906879,-1418.83,0.00023013,2]
[319475980,1710799906889,-578.72,0.00023013,2]
[319475981,1710799906898,-500.0,0.00023013,2]
[319475982,1710799906906,-1283.92,0.00023013,2]
[319475983,1710799906916,-1017.47,0.00023013,2]
[319475984,1710799906925,-500.0,0.00023013,2]
[319475985,1710799906934,-500.0,0.00023013,2]
[319475986,1710799906944,-500.0,0.00023013,2]
[319475987,1710799906954,-793.34,0.00023013,2]
[319475988,1710799906963,-504.9861274,0.00023013,2]
[319475989,1710799906972,-500.0,0.00023013,2]
[319475990,1710799906982,-4863.68,0.00023013,2]
[319475991,1710799906991,-3058.85,0.00023013,2]
[319475992,1710799907000,-544.38,0.00023013,2]
[319475993,1710799907010,-1383.54,0.00023013,2]
[319475994,1710799907019,-500.0,0.00023013,2]
[319475995,1710799907028,-500.0,0.00023013,2]
[319475996,1710799907037,-3420.67,0.00023013,2]
[319475997,1710799907047,-1467.98,0.00023013,2]
[319475998,1710799907056,-500.0,0.00023013,2]
[319475999,1710799907065,-500.0,0.00023013,2]
[319476000,1710799907074,-500.0,0.00023013,2]
[319476001,1710799907083,-909.74,0.00023013,2]
[319476002,1710799907092,-500.0,0.00023013,2]
[319476003,1710799907101,-500.0,0.00023013,2]
[319476004,1710799907110,-616.14,0.00023013,2]
[319476005,1710799907119,-500.0,0.00023013,2]
[319476006,1710799907128,-1472.05,0.00023013,2]
[319476007,1710799907139,-1391.49,0.00023013,2]
[319476008,1710799907147,-500.0,0.00023013,2]
[319476009,1710799907156,-1026.28,0.00023013,2]
[319476010,1710799907166,-500.0,0.00023013,2]
[319476011,1710799907175,-501.4,0.00023013,2]
[319476012,1710799907184,-500.0,0.00023013,2]
[319476013,1710799907193,-500.0,0.00023013,2]
[319476014,1710799907202,-500.0,0.00023013,2]
[319476015,1710799907212,-1044.22,0.00023013,2]
[319476016,1710799907222,-736.5,0.00023013,2]
[319476017,1710799907231,-500.0,0.00023013,2]
[319476018,1710799907241,-500.0,0.00023013,2]
[319476019,1710799907251,-1726.54,0.00023013,2]
[319476020,1710799907260,-12189.86,0.00023013,2]
[319476021,1710799907270,-2302.64,0.00023013,2]
[319476022,1710799907278,-1165.44,0.00023013,2]
[319476023,1710799907287,-1530.51,0.00023013,2]
[319476024,1710799907296,-500.0,0.00023013,2]
[319476025,1710799907305,-1375.05,0.00023013,2]
[319476026,1710799907315,-1316.33,0.00023013,2]
[319476027,1710799907324,-728.8,0.00023013,2]
[319476028,1710799907333,-515.52,0.00023013,2]
[319476029,1710799907342,-500.0,0.00023013,2]
[319476030,1710799907351,-1294.68,0.00023013,2]
[319476031,1710799907361,-500.0,0.00023013,2]
[319476032,1710799907370,-1925.65,0.00023013,2]
[319476033,1710799907379,-1545.51,0.00023013,2]
[319476034,1710799907389,-500.0,0.00023013,2]
[319476035,1710799907399,-6062.83,0.00023013,2]
[319476036,1710799907408,-1677.75,0.00023013,2]
[319476037,1710799907417,-500.0,0.00023013,2]
[319476038,1710799907426,-500.0,0.00023013,2]
[319476039,1710799907435,-630.76,0.00023013,2]
[319476040,1710799907445,-697.84,0.00023013,2]
[319476041,1710799907454,-1539.77,0.00023013,2]
[319476042,1710799907463,-1111.24,0.00023013,2]
[319476043,1710799907472,-500.0,0.00023013,2]
[319476044,1710799907482,-500.0,0.00023013,2]
[319476045,1710799907491,-1154.87,0.00023013,2]
[319476046,1710799907500,-151.0,0.00023013,7]
[319476047,1710799907510,-500.0,0.00023013,2]
[319476048,1710799907519,-500.0,0.00023013,2]
[319476049,1710799907528,-2083.43,0.00023013,2]
[319476050,1710799907538,-500.0,0.00023013,2]
[319476051,1710799907547,-873.95,0.00023013,2]
[319476052,1710799907557,-572.93,0.00023013,2]
[319476053,1710799907567,-1218.6,0.00023013,2]
[319476054,1710799907579,-500.0,0.00023013,2]
[319476055,1710799907589,-500.0,0.00023013,2]
[319476056,1710799907598,-500.0,0.00023013,2]
[319476057,1710799907608,-762.41,0.00023013,2]
[319476058,1710799907618,-805.44,0.00023013,2]
[319476059,1710799907628,-2278.77,0.00023013,2]
[319476060,1710799907638,-500.0,0.00023013,2]
[319476061,1710799907648,-2011.92,0.00023013,2]
[319476062,1710799907659,-500.0,0.00023013,2]
[319476063,1710799907668,-2062.21,0.00023013,2]
[319476064,1710799907677,-971.93,0.00023013,2]
[319476065,1710799907687,-500.0,0.00023013,2]
[319476066,1710799907696,-500.0,0.00023013,2]
[319476067,1710799907705,-768.87,0.00023013,2]
[319476068,1710799907715,-1606.59,0.00023013,2]
[319476069,1710799907723,-500.0,0.00023013,2]
[319476070,1710799907733,-1340.16,0.00023013,2]
[319476071,1710799907743,-500.0,0.00023013,2]
[319476072,1710799907752,-500.0,0.00023013,2]
[319476073,1710799907762,-151.0,0.00023013,7]
[319476074,1710799907772,-151.0,0.00023013,7]
[319476075,1710799907781,-1007.76,0.00023013,2]
[319476076,1710799907790,-500.0,0.00023013,2]
[319476077,1710799907799,-4162.89,0.00023013,2]
[319476078,1710799907808,-1051.06,0.00023013,2]
[319476079,1710799907818,-500.0,0.00023013,2]
[319476080,1710799907827,-151.0,0.00023013,7]
[319476081,1710799907837,-500.0,0.00023013,2]
[319476082,1710799907846,-301.383268,0.00023013,7]
[319476083,1710799907855,-699.3,0.00023013,2]
[319476084,1710799907865,-518.73,0.00023013,2]
[319476085,1710799907874,-500.0,0.00023013,2]
[319476086,1710799907883,-1416.75,0.00023013,2]
[319476087,1710799907895,-1475.69,0.00023013,2]
[319476088,1710799907904,-1220.37,0.00023013,2]
[319476089,1710799907913,-1579.78,0.00023013,2]
[319476090,1710799907922,-960.76,0.00023013,2]
[319476091,1710799907932,-685.26,0.00023013,2]
[319476092,1710799907941,-725.93,0.00023013,2]
[319476093,1710799907951,-500.0,0.00023013,2]
[319476094,1710799907960,-500.0,0.00023013,2]
[319476095,1710799907970,-598.24,0.00023013,2]
[319476096,1710799907979,-3689.48,0.00023013,2]
[319476097,1710799907988,-1883.02,0.00023013,2]
[319476098,1710799907998,-500.0,0.00023013,2]
[319476099,1710799908007,-500.0,0.00023013,2]
[319476100,1710799908016,-500.0,0.00023013,2]
[319476101,1710799908026,-582.85,0.00023013,2]
[319476102,1710799908035,-503.71306595,0.00023013,2]
[319476103,1710799908045,-575.57,0.00023013,2]
[319476104,1710799908054,-597.67,0.00023013,2]
[319476105,1710799908063,-945.24,0.00023013,2]
[319476106,1710799908074,-494.818151,0.00023013,7]
[319476107,1710799908083,-494.818151,0.00023013,7]
[319476108,1710799908093,-3264.27,0.00023013,2]
[319476109,1710799908102,-425.40878807,0.00023013,2]
[319476110,1710799908112,-1114.59,0.00023013,2]
[319476111,1710799908122,-1101.09,0.00023013,2]
[319476112,1710799908132,-3081.47,0.00023013,2]
[319476113,1710799908145,-1090.35,0.00023013,2]
[319476114,1710799908154,-494.818151,0.00023013,7]
[319476115,1710799908163,-15199.29,0.00023013,2]
[319476116,1710799908173,-494.818151,0.00023013,7]
[319476117,1710799908182,-545.12,0.00023013,2]
[319476118,1710799908192,-525.35,0.00023013,2]
[319476119,1710799908201,-524.35,0.00023013,2]
[319476120,1710799908211,-926.2,0.00023013,2]
[319476121,1710799908220,-738.48,0.00023013,2]
[319476122,1710799908230,-500.0,0.00023013,2]
[319476123,1710799908239,-661.43,0.00023013,2]
[319476124,1710799908249,-367.18849966,0.00023013,2]
[319476125,1710799908258,-521.01,0.00023013,2]
[319476126,1710799908268,-500.0,0.00023013,2]
[319476127,1710799908277,-3873.88,0.00023013,2]
[319476128,1710799908287,-500.0,0.00023013,2]
[319476129,1710799908297,-1479.1,0.00023013,2]
[319476130,1710799908306,-2791.36,0.00023013,2]
[319476131,1710799908316,-8062.17,0.00023013,2]
[319476132,1710799908325,-500.0,0.00023013,2]
[319476133,1710799908334,-500.0,0.00023013,2]
[319476134,1710799908344,-1368.38,0.00023013,2]
[319476135,1710799908353,-1469.15,0.00023013,2]
[319476136,1710799908363,-500.0,0.00023013,2]
[319476137,1710799908373,-578.84,0.00023013,2]
[319476138,1710799908382,-500.0,0.00023013,2]
[319476139,1710799908393,-500.0,0.00023013,2]
[319476140,1710799908402,-500.0,0.00023013,2]
[319476141,1710799908417,-500.0,0.00023013,2]
[319476142,1710799908427,-316.82382775,0.00023013,2]
[319476143,1710799908437,-500.0,0.00023013,2]
[319476144,1710799908447,-625.58,0.00023013,2]
[319476145,1710799908456,-500.0,0.00023013,2]
[319476146,1710799908466,-500.0,0.00023013,2]
[319476147,1710799908476,-659.71,0.00023013,2]
[319476148,1710799908486,-1165.69,0.00023013,2]
[319476149,1710799908495,-500.0,0.00023013,2]
[319476150,1710799908505,-522.17,0.00023013,2]
[319476151,1710799908515,-500.0,0.00023013,2]
[319476152,1710799908524,-547.31,0.00023013,2]
[319476153,1710799908535,-4551.04,0.00023013,2]
[319476154,1710799908544,-1931.5,0.00023013,2]
[319476155,1710799908554,-500.0,0.00023013,2]
[319476156,1710799908565,-1852.16,0.00023013,2]
[319476157,1710799908574,-500.0,0.00023013,2]
[319476158,1710799908588,-5194.45,0.00023013,2]
[319476159,1710799908598,-4366.56,0.00023013,2]
[319476160,1710799908607,-574.42,0.00023013,2]
[319476161,1710799908617,-2626.87,0.00023013,2]
[319476162,1710799908627,-500.0,0.00023013,2]
[319476163,1710799908636,-1560.19,0.00023013,2]
[319476164,1710799908646,-4566.9,0.00023013,2]
[319476165,1710799908656,-500.0,0.00023013,2]
[319476166,1710799908666,-643.53,0.00023013,2]
[319476167,1710799908676,-7356.66,0.00023013,2]
[319476168,1710799908685,-500.0,0.00023013,2]
[319476169,1710799908694,-2335.37,0.00023013,2]
[319476170,1710799908704,-1433.97,0.00023013,2]
[319476171,1710799908714,-688.680588,0.00023013,7]
[319476172,1710799908724,-1302.8,0.00023013,2]
[319476173,1710799908733,-500.0,0.00023013,2]
[319476174,1710799908742,-688.680588,0.00023013,7]
[319476175,1710799908753,-500.0,0.00023013,2]
[319476176,1710799908764,-12149.23,0.00023013,2]
[319476177,1710799908774,-500.0,0.00023013,2]
[319476178,1710799908783,-596.59,0.00023013,2]
[319476179,1710799908793,-500.0,0.00023013,2]
[319476180,1710799908802,-500.0,0.00023013,2]
[319476181,1710799908812,-976.06,0.00023013,2]
[319476182,1710799908822,-500.0,0.00023013,2]
[319476183,1710799908831,-773.37,0.00023013,2]
[319476184,1710799908840,-688.680588,0.00023013,7]
[319476185,1710799908850,-688.680588,0.00023013,7]
[319476186,1710799908859,-500.0,0.00023013,2]
[319476187,1710799908869,-500.0,0.00023013,2]
[319476188,1710799908879,-500.0,0.00023013,2]
[319476189,1710799908888,-500.0,0.00023013,2]
[319476190,1710799908897,-12163.47,0.00023013,2]
[319476191,1710799908907,-500.0,0.00023013,2]
[319476192,1710799908917,-500.0,0.00023013,2]
[319476193,1710799908926,-500.0,0.00023013,2]
[319476194,1710799908937,-1040.95,0.00023013,2]
[319476195,1710799908946,-1666.88,0.00023013,2]
[319476196,1710799908955,-500.0,0.00023013,2]
[319476197,1710799908965,-500.0,0.00023013,2]
[319476198,1710799908974,-4014.74,0.00023013,2]
[319476199,1710799908983,-676.8,0.00023013,2]
[319476200,1710799908993,-500.0,0.00023013,2]
[319476201,1710799909002,-2937.18,0.00023013,2]
[319476202,1710799909011,-798.37,0.00023013,2]
[319476203,1710799909021,-500.0,0.00023013,2]
[319476204,1710799909030,-514.53,0.00023013,2]
[319476205,1710799909039,-630.18,0.00023013,2]
[319476206,1710799909049,-1092.32,0.00023013,2]
[319476207,1710799909058,-500.0,0.00023013,2]
[319476208,1710799909067,-500.0,0.00023013,2]
[319476209,1710799909077,-4002.95,0.00023013,2]
[319476210,1710799909087,-500.0,0.00023013,2]
[319476211,1710799909097,-1825.34,0.00023013,2]
[319476212,1710799909106,-3032.32,0.00023013,2]
[319476213,1710799909116,-713.44,0.00023013,2]
[319476214,1710799909125,-500.0,0.00023013,2]
[319476215,1710799909134,-2538.34,0.00023013,2]
[319476216,1710799909147,-500.0,0.00023013,2]
[319476217,1710799909157,-1704.18,0.00023013,2]
[319476218,1710799909167,-2264.59,0.00023013,2]
[319476219,1710799909176,-500.0,0.00023013,2]
[319476220,1710799909185,-500.0,0.00023013,2]
[319476221,1710799909194,-999.91,0.00023013,2]
[319476222,1710799909203,-1138.58,0.00023013,2]
[319476223,1710799909212,-1455.99,0.00023013,2]
[319476224,1710799909222,-500.0,0.00023013,2]
[319476225,1710799909231,-500.0,0.00023013,2]
[319476226,1710799909240,-951.86,0.00023013,2]
[319476227,1710799909249,-500.0,0.00023013,2]
[319476228,1710799909259,-780.67,0.00023013,2]
[319476229,1710799909268,-1309.57,0.00023013,2]
[319476230,1710799909278,-500.0,0.00023013,2]
[319476231,1710799909287,-500.0,0.00023013,2]
[319476232,1710799909296,-500.0,0.00023013,2]
[319476233,1710799909305,-500.0,0.00023013,2]
[319476234,1710799909315,-500.0,0.00023013,2]
[319476235,1710799909325,-4539.82,0.00023013,2]
[319476236,1710799909334,-500.0,0.00023013,2]
[319476237,1710799909343,-4994.79,0.00023013,2]
[319476238,1710799909353,-1485.77,0.00023013,2]
[319476239,1710799909363,-849.91,0.00023013,2]
[319476240,1710799909372,-1794.57,0.00023013,2]
[319476241,1710799909382,-7034.98,0.00023013,2]
[319476242,1710799909392,-500.0,0.00023013,2]
[319476243,1710799909401,-500.0,0.00023013,2]
[319476244,1710799909411,-750.9,0.00023013,2]
[319476245,1710799909421,-2385.09,0.00023013,2]
[319476246,1710799909431,-500.0,0.00023013,2]
[319476247,1710799909440,-500.0,0.00023013,2]
[319476248,1710799909450,-1615.86,0.00023013,2]
[319476249,1710799909667,-6038.49,0.00023013,2]
[319476250,1710799909677,-979.41,0.00023013,2]
[319476251,1710799909686,-1135.58,0.00023013,2]
[319476252,1710799909695,-500.0,0.00023013,2]
[319476253,1710799909705,-6456.64,0.00023013,2]
[319476254,1710799909713,-942.12,0.00023013,2]
[319476255,1710799909722,-1504.81,0.00023013,2]
[319476256,1710799909731,-500.0,0.00023013,2]
[319476257,1710799909741,-500.0,0.00023013,2]
[319476258,1710799909750,-500.0,0.00023013,2]
[319476259,1710799909759,-854.48,0.00023013,2]
[319476260,1710799909769,-508.22,0.00023013,2]
[319476261,1710799909778,-662.67,0.00023013,2]
[319476262,1710799909787,-2520.23,0.00023013,2]
[319476263,1710799909796,-40338.6,0.00023013,2]
[319476264,1710799909806,-1120.6,0.00023013,2]
[319476265,1710799909825,-1192.63,0.00023013,2]
[319476266,1710799909837,-4121.83,0.00023013,2]
[319476267,1710799909848,-2259.16,0.00023013,2]
[319476268,1710799909859,-2157.68,0.00023013,2]
[319476269,1710799909871,-500.0,0.00023013,2]
[319476270,1710799909883,-2358.27,0.00023013,2]
[319476271,1710799909895,-500.0,0.00023013,2]
[319476272,1710799909905,-500.0,0.00023013,2]
[319476273,1710799909915,-500.0,0.00023013,2]
[319476274,1710799909926,-6231.23,0.00023013,2]
[319476275,1710799909936,-500.0,0.00023013,2]
[319476276,1710799909946,-2126.6,0.00023013,2]
[319476277,1710799909958,-500.0,0.00023013,2]
[319476278,1710799909969,-1026.0,0.00023014,2]
[319476279,1710799909979,-2039.69107,0.0002305,2]
[319476280,1710799909989,-161.73500111,0.0002305,2]
[319476281,1710799909999,-289.20534574,0.0002305,2]
[319476282,1710799910009,-4792.46713612,0.0002305,2]
[319476283,1710799910019,-151.07221851,0.00023058,2]
[319476284,1710799910030,-40725.81614903,0.000231,2]
[319476285,1710799910040,-1332.05421387,0.00023119,7]
[319476286,1710799910050,-215.0,0.0002318,2]
[319476287,1710799910060,-214.0,0.0002318,2]
[319476288,1710799910069,-204.0,0.0002318,2]
[319476289,1710799910080,-5850.1559099,0.00023212,2]
[319476290,1710799910089,-300.0,0.00023223,2]
[319476291,1710799910099,-1200.0,0.0002323,2]
[319476292,1710799910110,-45232.25236621,0.0002323,2]
[319476293,1710799910120,-153.6268143,0.00023238,2]
[319476294,1710799910131,-310.797397,0.00023242,2]
[319476295,1710799910142,-2420.501041,0.00023242,2]
[319476296,1710799910152,-605.125261,0.00023242,2]
[319476297,1710799910161,-163.183865,0.00023242,2]
[319476298,1710799910172,-500.0,0.00023287,2]
[319476299,1710799910182,-500.0,0.00023287,2]
[319476300,1710799910192,-500.0,0.00023287,2]
[319476301,1710799910201,-500.0,0.00023287,2]
[319476302,1710799910212,-500.0,0.00023287,2]
[319476303,1710799910221,-500.0,0.00023287,2]